fUSD/lending_fUSD_20250607
["ID","MTS","AMOUNT","RATE_DAILY","PERIOD"]
[364903909,1749287458668,-151.0,0.0004,14]
[364903910,1749287458677,-151.0,0.0004,14]
[364903911,1749287458686,-225.218056,0.0004,14]
[364903912,1749287458696,-225.218056,0.0004,14]
[364903913,1749287458705,-313.64173,0.0004,14]
[364903914,1749287458714,-151.0,0.0004,14]
[364903915,1749287458723,-313.64173,0.0004,14]
[364903916,1749287458733,-5000.0,0.0004,30]
[364903917,1749287458742,-150.0,0.00040001,120]
[364903918,1749287458751,-150.0,0.00040008,120]
[364903919,1749287458761,-2000.0,0.00040052,60]
[364903920,1749287458774,-150.0,0.00040068,120]
[364903921,1749287458783,-150.0,0.00040097,120]
[364903922,1749287458792,-160.28711782,0.00040098,14]
[364903923,1749287458801,-634.00419138,0.00040098,14]
[364903924,1749287458811,-1385.36089539,0.0004011,2]
[364903925,1749287458820,-200.0,0.00040115,2]
[364903926,1749287458829,-200.0,0.00040115,2]
[364903927,1749287458839,-150.0,0.00040117,120]
[364903928,1749287458849,-233.37972,0.00040145,2]
[364903929,1749287458859,-57437.1293847,0.0004017,2]
[364903930,1749287458868,-43225.9404571,0.0004017,2]
[364903931,1749287458877,-780774.0334525,0.0004017,2]
[364903932,1749287458887,-587593.6392019,0.0004017,2]
[364903933,1749287458896,-162.98475457,0.000402,90]
[364903934,1749287458906,-611.0378752,0.00040245,42]
[364903935,1749287458915,-944.0,0.00040259,2]
[364903936,1749287458924,-801.0,0.00040259,2]
[364903937,1749287458934,-636.0,0.00040259,2]
[364903938,1749287458943,-2000.0,0.00040259,2]
[364903939,1749287458953,-1274.0,0.00040259,2]
[364903940,1749287458962,-589.0,0.00040259,2]
[364903941,1749287458971,-557.0,0.00040259,2]
[364903942,1749287458981,-926.0,0.00040259,2]
[364903943,1749287458992,-155.0,0.00040259,2]
[364903944,1749287459001,-4082.0,0.00040259,2]
[364903945,1749287459010,-163.0,0.00040274,90]
[364903946,1749287459020,-55971.88,0.000403,14]
[364903947,1749287459029,-6302.96021634,0.000403,2]
[364903948,1749287459039,-226.30807831,0.000403,2]
[364903949,1749287459048,-150.0,0.00040375,2]
[364903950,1749287459057,-25971.33227285,0.00040382,30]
[364903951,1749287459067,-345.65,0.000404,14]
[364903952,1749287459080,-150.0,0.00040405,120]
[364903953,1749287459090,-2051.3,0.0004044,45]
[364903954,1749287459099,-1899.59,0.00040469,2]
[364903955,1749287459109,-150.29,0.0004049,2]
[364903956,1749287459119,-185.97513065,0.000405,120]
[364903957,1749287459129,-2000.0,0.000405,2]
[364903958,1749287459138,-1000.0,0.000405,7]
[364903959,1749287459148,-461.3,0.000405,2]
[364903960,1749287459158,-7000.0,0.0004051,4]
[364903961,1749287459167,-200.0,0.00040517,2]
[364903962,1749287459176,-194.89262063,0.00040517,2]
[364903963,1749287459186,-350.0,0.00040656,120]
[364903964,1749287459195,-4254.0,0.000407,117]
[364903965,1749287459205,-461.04,0.00040741,2]
[364903966,1749287459214,-2000.0,0.00040779,60]
[364903967,1749287459223,-205.0,0.00040801,14]
[364903968,1749287459232,-150.0,0.00040813,120]
[364903969,1749287459241,-155.00005566,0.0004082,120]
[364903970,1749287459250,-296.44,0.00040861,2]
[364903971,1749287459259,-150.0,0.00040862,120]
[364903972,1749287459269,-345.65,0.000409,14]
[364903973,1749287459280,-1385.36089539,0.000409,2]
[364903974,1749287459289,-150.0,0.00040917,120]
[364903975,1749287459299,-200.0,0.00040922,2]
[364903976,1749287459308,-776.69820464,0.00040999,30]
[364903977,1749287459317,-50000.0,0.00041,41]
[364903978,1749287459326,-10000.0,0.00041,10]
[364903979,1749287459334,-274.73487085,0.00041,120]
[364903980,1749287459343,-2000.0,0.00041,120]
[364903981,1749287459352,-1000.0,0.00041,50]
[364903982,1749287459361,-2570.90183769,0.00041,60]
[364903983,1749287459370,-7873.0,0.00041,120]
[364903984,1749287459380,-600.0,0.00041,120]
[364903985,1749287459389,-1711.0,0.00041,120]
[364903986,1749287459398,-177.0,0.00041,90]
[364903987,1749287459407,-480.0,0.00041095,120]
[364903988,1749287459416,-480.0,0.00041095,120]
[364903989,1749287459426,-480.0,0.00041095,120]
[364903990,1749287459435,-480.0,0.00041095,120]
[364903991,1749287459444,-480.0,0.00041095,120]
[364903992,1749287459453,-480.0,0.00041095,120]
[364903993,1749287459462,-480.0,0.00041095,120]
[364903994,1749287459471,-480.0,0.00041095,120]
[364903995,1749287459481,-480.0,0.00041095,120]
[364903996,1749287459491,-480.0,0.00041095,120]
[364903997,1749287459501,-480.0,0.00041095,120]
[364903998,1749287459512,-480.0,0.00041095,120]
[364903999,1749287459522,-480.0,0.00041095,120]
[364904000,1749287459532,-480.0,0.00041095,120]
[364904001,1749287459542,-480.0,0.00041095,120]
[364904002,1749287459551,-480.0,0.00041095,120]
[364904003,1749287459561,-480.0,0.00041095,120]
[364904004,1749287459571,-480.0,0.00041095,120]
[364904005,1749287459581,-480.0,0.00041095,120]
[364904006,1749287459591,-480.0,0.00041095,120]
[364904007,1749287459600,-480.0,0.00041095,120]
[364904008,1749287459611,-176.99989977,0.00041095,120]
[364904009,1749287459621,-592.09538839,0.00041095,30]
[364904010,1749287459631,-181.7653698,0.00041095,120]
[364904011,1749287459641,-500.0,0.00041096,10]
[364904012,1749287459651,-519.76822645,0.00041096,5]
[364904013,1749287459662,-2046.0,0.00041096,13]
[364904014,1749287459672,-2000.0,0.00041096,13]
[364904015,1749287459681,-1511.0,0.00041096,13]
[364904016,1749287459691,-500.0,0.00041096,31]
[364904017,1749287459701,-500.0,0.00041096,31]
[364904018,1749287459710,-489.60297332,0.00041096,31]
[364904019,1749287459720,-150.0,0.00041096,2]
[364904020,1749287459731,-933.0,0.00041096,60]
[364904021,1749287459740,-742.88349637,0.000411,120]
[364904022,1749287459750,-742.88349637,0.000411,120]
[364904023,1749287459761,-742.88349637,0.000411,120]
[364904024,1749287459776,-742.88349637,0.000411,120]
[364904025,1749287459785,-742.88349637,0.000411,120]
[364904026,1749287459795,-742.88349637,0.000411,120]
[364904027,1749287459805,-742.88349637,0.000411,120]
[364904028,1749287459815,-742.88349637,0.000411,120]
[364904029,1749287459824,-742.88349637,0.000411,120]
[364904030,1749287459835,-742.88349637,0.000411,120]
[364904031,1749287459846,-742.88349637,0.000411,120]
[364904032,1749287459856,-742.88349637,0.000411,120]
[364904033,1749287459866,-742.88349637,0.000411,120]
[364904034,1749287459876,-742.88349637,0.000411,120]
[364904035,1749287459886,-742.88349637,0.000411,120]
[364904036,1749287459896,-742.88349637,0.000411,120]
[364904037,1749287459906,-742.88349637,0.000411,120]
[364904038,1749287459915,-742.88349637,0.000411,120]
[364904039,1749287459925,-742.88349637,0.000411,120]
[364904040,1749287459937,-742.88,0.000411,120]
[364904041,1749287459947,-1733.39482487,0.000411,120]
[364904042,1749287459957,-1733.39482487,0.000411,120]
[364904043,1749287459967,-1733.39482487,0.000411,120]
[364904044,1749287459977,-1733.39482487,0.000411,120]
[364904045,1749287459988,-1733.39482487,0.000411,120]
[364904046,1749287459999,-1733.39482487,0.000411,120]
[364904047,1749287460008,-1733.39482487,0.000411,120]
[364904048,1749287460019,-1733.39482487,0.000411,120]
[364904049,1749287460030,-1733.39482487,0.000411,120]
[364904050,1749287460039,-1733.39482487,0.000411,120]
[364904051,1749287460050,-1733.39482487,0.000411,120]
[364904052,1749287460060,-1733.39482487,0.000411,120]
[364904053,1749287460071,-1733.39482487,0.000411,120]
[364904054,1749287460081,-1733.39482487,0.000411,120]
[364904055,1749287460091,-1733.39482487,0.000411,120]
[364904056,1749287460101,-1733.39482487,0.000411,120]
[364904057,1749287460111,-1733.39482487,0.000411,120]
[364904058,1749287460122,-1733.39482487,0.000411,120]
[364904059,1749287460132,-1733.39482487,0.000411,120]
[364904060,1749287460142,-1733.39,0.000411,120]
[364904061,1749287460152,-150.01447357,0.000411,120]
[364904062,1749287460163,-150.01447357,0.000411,120]
[364904063,1749287460174,-150.01447357,0.000411,120]
[364904064,1749287460184,-150.01447357,0.000411,120]
[364904065,1749287460194,-150.01447357,0.000411,120]
[364904066,1749287460204,-150.01447357,0.000411,120]
[364904067,1749287460215,-150.01447357,0.000411,120]
[364904068,1749287460225,-150.01447357,0.000411,120]
[364904069,1749287460234,-150.01447357,0.000411,120]
[364904070,1749287460245,-150.01,0.000411,120]
[364904071,1749287460256,-175.01688583,0.000411,120]
[364904072,1749287460266,-175.01688583,0.000411,120]
[364904073,1749287460278,-175.01688583,0.000411,120]
[364904074,1749287460288,-175.01688583,0.000411,120]
[364904075,1749287460299,-175.01688583,0.000411,120]
[364904076,1749287460309,-175.01688583,0.000411,120]
[364904077,1749287460319,-175.01688583,0.000411,120]
[364904078,1749287460330,-175.01688583,0.000411,120]
[364904079,1749287460339,-175.01688583,0.000411,120]
[364904080,1749287460349,-175.01688583,0.000411,120]
[364904081,1749287460358,-175.01688583,0.000411,120]
[364904082,1749287460369,-175.01688583,0.000411,120]
[364904083,1749287460379,-175.01688583,0.000411,120]
[364904084,1749287460389,-175.01688583,0.000411,120]
[364904085,1749287460398,-175.01688583,0.000411,120]
[364904086,1749287460407,-175.01688583,0.000411,120]
[364904087,1749287460416,-175.01688583,0.000411,120]
[364904088,1749287460425,-175.01688583,0.000411,120]
[364904089,1749287460435,-175.01688583,0.000411,120]
[364904090,1749287460444,-175.01,0.000411,120]
[364904091,1749287460454,-1267.41605379,0.000411,120]
[364904092,1749287460463,-1267.41605379,0.000411,120]
[364904093,1749287460472,-1267.41605379,0.000411,120]
[364904094,1749287460481,-1267.41605379,0.000411,120]
[364904095,1749287460491,-1267.41605379,0.000411,120]
[364904096,1749287460500,-1267.41605379,0.000411,120]
[364904097,1749287460509,-1267.41605379,0.000411,120]
[364904098,1749287460519,-1267.41605379,0.000411,120]
[364904099,1749287460528,-1267.41605379,0.000411,120]
[364904100,1749287460538,-1267.41605379,0.000411,120]
[364904101,1749287460547,-1267.41605379,0.000411,120]
[364904102,1749287460557,-1267.41605379,0.000411,120]
[364904103,1749287460567,-1267.41605379,0.000411,120]
[364904104,1749287460576,-1267.41605379,0.000411,120]
[364904105,1749287460585,-1267.41605379,0.000411,120]
[364904106,1749287460595,-1267.41605379,0.000411,120]
[364904107,1749287460604,-1267.41605379,0.000411,120]
[364904108,1749287460613,-1267.41605379,0.000411,120]
[364904109,1749287460623,-1267.41605379,0.000411,120]
[364904110,1749287460632,-1267.41,0.000411,120]
[364904111,1749287460643,-2957.3041255,0.000411,120]
[364904112,1749287460653,-2957.3041255,0.000411,120]
[364904113,1749287460662,-2957.3041255,0.000411,120]
[364904114,1749287460672,-2957.3041255,0.000411,120]
[364904115,1749287460682,-2957.3041255,0.000411,120]
[364904116,1749287460691,-2957.3041255,0.000411,120]
[364904117,1749287460701,-2957.3041255,0.000411,120]
[364904118,1749287460711,-2957.3041255,0.000411,120]
[364904119,1749287460720,-2957.3041255,0.000411,120]
[364904120,1749287460730,-2957.3041255,0.000411,120]
[364904121,1749287460740,-2957.3041255,0.000411,120]
[364904122,1749287460749,-2957.3041255,0.000411,120]
[364904123,1749287460759,-2957.3041255,0.000411,120]
[364904124,1749287460772,-2957.3041255,0.000411,120]
[364904125,1749287460782,-2957.3041255,0.000411,120]
[364904126,1749287460791,-2957.3041255,0.000411,120]
[364904127,1749287460802,-2957.3041255,0.000411,120]
[364904128,1749287460812,-2957.3041255,0.000411,120]
[364904129,1749287460821,-2957.3041255,0.000411,120]
[364904130,1749287460832,-2957.3,0.000411,120]
[364904131,1749287460844,-933.0,0.00041123,60]
[364904132,1749287460854,-7000.0,0.0004113,7]
[364904133,1749287460863,-933.0,0.00041151,60]
[364904134,1749287460873,-611.0378752,0.00041176,44]
[364904135,1749287460882,-933.0,0.00041178,60]
[364904136,1749287460893,-157.0,0.000412,120]
[364904137,1749287460902,-933.0,0.00041206,60]
[364904138,1749287460912,-933.0,0.00041233,60]
[364904139,1749287460922,-933.0,0.0004126,60]
[364904140,1749287460932,-933.0,0.00041288,60]
[364904141,1749287460942,-345.65,0.000413,14]
[364904142,1749287460951,-933.0,0.00041315,60]
[364904143,1749287460961,-933.0,0.00041343,60]
[364904144,1749287460970,-933.0,0.0004137,60]
[364904145,1749287460980,-10661.07840673,0.0004137,5]
[364904146,1749287460989,-933.0,0.00041397,60]
[364904147,1749287460998,-933.0,0.00041425,60]
[364904148,1749287461008,-933.0,0.00041452,60]
[364904149,1749287461017,-933.0,0.0004148,60]
[364904150,1749287461027,-199.66042456,0.000415,60]
[364904151,1749287461036,-2000.0,0.00041507,60]
[364904152,1749287461046,-933.0,0.00041507,60]
[364904153,1749287461054,-150.0,0.00041524,120]
[364904154,1749287461063,-933.0,0.00041534,60]
[364904155,1749287461072,-933.0,0.00041562,60]
[364904156,1749287461083,-933.0,0.00041589,60]
[364904157,1749287461092,-152.0,0.000416,120]
[364904158,1749287461101,-552.08,0.000416,14]
[364904159,1749287461110,-933.0,0.00041617,60]
[364904160,1749287461119,-1000.0,0.00041644,10]
[364904161,1749287461129,-933.0,0.00041644,60]
[364904162,1749287461137,-2400.0,0.00041667,30]
[364904163,1749287461146,-933.0,0.00041671,60]
[364904164,1749287461156,-933.0,0.00041699,60]
[364904165,1749287461166,-949.13957218,0.00041726,60]
[364904166,1749287461177,-7000.0,0.0004176,10]
[364904167,1749287461188,-2000.0,0.0004178,31]
[364904168,1749287461198,-345.65,0.000418,14]
[364904169,1749287461208,-205.0,0.00041811,16]
[364904170,1749287461218,-415.40293148,0.000419,30]
[364904171,1749287461227,-200000.0,0.000419,120]
[364904172,1749287461237,-193686.93,0.000419,120]
[364904173,1749287461247,-151.0,0.000419,14]
[364904174,1749287461257,-151.0,0.000419,14]
[364904175,1749287461267,-151.0,0.000419,14]
[364904176,1749287461279,-151.0,0.000419,14]
[364904177,1749287461289,-151.0,0.000419,14]
[364904178,1749287461299,-151.0,0.000419,14]
[364904179,1749287461309,-182.368168,0.000419,14]
[364904180,1749287461319,-182.368168,0.000419,14]
[364904181,1749287461330,-151.0,0.000419,14]
[364904182,1749287461340,-151.0,0.000419,14]
[364904183,1749287461351,-151.0,0.000419,14]
[364904184,1749287461361,-151.0,0.000419,14]
[364904185,1749287461372,-151.0,0.000419,14]
[364904186,1749287461383,-207.03349,0.000419,14]
[364904187,1749287461393,-207.03349,0.000419,14]
[364904188,1749287461404,-961.409907,0.000419,14]
[364904189,1749287461414,-312.669811,0.000419,14]
[364904190,1749287461425,-312.669811,0.000419,14]
[364904191,1749287461435,-151.0,0.000419,14]
[364904192,1749287461444,-151.0,0.000419,14]
[364904193,1749287461456,-151.0,0.000419,14]
[364904194,1749287461467,-331.2617,0.000419,14]
[364904195,1749287461478,-331.2617,0.000419,14]
[364904196,1749287461489,-158.059182,0.000419,14]
[364904197,1749287461499,-311.181235,0.000419,14]
[364904198,1749287461509,-151.0,0.000419,14]
[364904199,1749287461518,-151.0,0.000419,14]
[364904200,1749287461528,-151.0,0.000419,14]
[364904201,1749287461539,-151.0,0.000419,14]
[364904202,1749287461549,-151.0,0.000419,14]
[364904203,1749287461559,-151.0,0.000419,14]
[364904204,1749287461568,-151.0,0.000419,14]
[364904205,1749287461579,-151.0,0.000419,14]
[364904206,1749287461590,-153.65936,0.000419,14]
[364904207,1749287461599,-151.0,0.000419,14]
[364904208,1749287461609,-151.0,0.000419,14]
[364904209,1749287461619,-151.0,0.000419,14]
[364904210,1749287461628,-151.0,0.000419,14]
[364904211,1749287461638,-362.983416,0.000419,14]
[364904212,1749287461647,-362.983416,0.000419,14]
[364904213,1749287461657,-151.0,0.000419,14]
[364904214,1749287461667,-151.0,0.000419,14]
[364904215,1749287461677,-151.0,0.000419,14]
[364904216,1749287461687,-151.0,0.000419,14]
[364904217,1749287461697,-151.0,0.000419,14]
[364904218,1749287461706,-151.0,0.000419,14]
[364904219,1749287461717,-151.0,0.000419,7]
[364904220,1749287461726,-202.3884,0.000419,14]
[364904221,1749287461737,-202.3884,0.000419,14]
[364904222,1749287461747,-475.577294,0.000419,14]
[364904223,1749287461757,-209.760027,0.000419,14]
[364904224,1749287461770,-209.760027,0.000419,14]
[364904225,1749287461779,-151.0,0.000419,14]
[364904226,1749287461790,-151.0,0.000419,14]
[364904227,1749287461799,-151.0,0.000419,14]
[364904228,1749287461809,-151.0,0.000419,14]
[364904229,1749287461819,-151.0,0.000419,14]
[364904230,1749287461829,-151.0,0.000419,14]
[364904231,1749287461839,-151.0,0.000419,14]
[364904232,1749287461852,-151.0,0.000419,14]
[364904233,1749287461861,-151.0,0.000419,14]
[364904234,1749287461873,-240.77297,0.000419,14]
[364904235,1749287461883,-240.77297,0.000419,14]
[364904236,1749287461893,-151.0,0.000419,14]
[364904237,1749287461903,-151.0,0.000419,14]
[364904238,1749287461914,-151.0,0.000419,14]
[364904239,1749287461924,-151.0,0.000419,14]
[364904240,1749287461934,-1295.785724,0.000419,14]
[364904241,1749287461945,-1295.785724,0.000419,14]
[364904242,1749287461956,-151.0,0.000419,14]
[364904243,1749287461966,-5691.071096,0.000419,14]
[364904244,1749287461977,-5691.071096,0.000419,14]
[364904245,1749287461987,-151.0,0.000419,14]
[364904246,1749287461996,-151.0,0.000419,14]
[364904247,1749287462006,-151.0,0.000419,14]
[364904248,1749287462016,-233.544879,0.000419,14]
[364904249,1749287462028,-151.0,0.000419,14]
[364904250,1749287462039,-233.544879,0.000419,14]
[364904251,1749287462048,-895.060117,0.000419,14]
[364904252,1749287462058,-151.0,0.000419,14]
[364904253,1749287462068,-895.060117,0.000419,14]
[364904254,1749287462078,-1030.373222,0.000419,14]
[364904255,1749287462089,-1030.373222,0.000419,14]
[364904256,1749287462098,-227.9,0.0004199,120]
[364904257,1749287462108,-50000.0,0.00042,42]
[364904258,1749287462118,-300.0,0.00042,120]
[364904259,1749287462128,-130000.0,0.00042,15]
[364904260,1749287462138,-1000.0,0.00042,2]
[364904261,1749287462149,-500.0,0.00042,2]
[364904262,1749287462160,-5288.7,0.00042,6]
[364904263,1749287462171,-2243.42699923,0.00042,30]
[364904264,1749287462182,-1378.74700741,0.00042,30]
[364904265,1749287462192,-1149.93396526,0.00042,30]
[364904266,1749287462203,-1042.31533308,0.00042,30]
[364904267,1749287462214,-1049.8783196,0.00042,120]
[364904268,1749287462224,-1610.08729153,0.00042,120]
[364904269,1749287462234,-2000.0,0.00042,120]
[364904270,1749287462244,-676.46,0.00042,120]
[364904271,1749287462255,-676.46,0.00042,120]
[364904272,1749287462265,-676.46,0.00042,120]
[364904273,1749287462277,-676.46,0.00042,120]
[364904274,1749287462289,-676.46,0.00042,120]
[364904275,1749287462300,-676.46,0.00042,120]
[364904276,1749287462311,-676.46,0.00042,120]
[364904277,1749287462321,-676.46,0.00042,120]
[364904278,1749287462332,-676.46,0.00042,120]
[364904279,1749287462342,-676.46,0.00042,120]
[364904280,1749287462352,-676.46,0.00042,120]
[364904281,1749287462362,-676.46,0.00042,120]
[364904282,1749287462372,-676.46,0.00042,120]
[364904283,1749287462383,-676.46,0.00042,120]
[364904284,1749287462395,-676.46,0.00042,120]
[364904285,1749287462406,-676.46,0.00042,120]
[364904286,1749287462415,-676.46,0.00042,120]
[364904287,1749287462425,-676.46,0.00042,120]
[364904288,1749287462435,-676.46,0.00042,120]
[364904289,1749287462445,-676.46,0.00042,120]
[364904290,1749287462455,-676.46,0.00042,120]
[364904291,1749287462467,-676.46,0.00042,120]
[364904292,1749287462476,-676.46,0.00042,120]
[364904293,1749287462486,-676.48692451,0.00042,120]
[364904294,1749287462496,-16612.0,0.00042,120]
[364904295,1749287462506,-1500.0,0.00042,120]
[364904296,1749287462516,-478.44976688,0.00042,60]
[364904297,1749287462526,-501.81,0.00042,30]
[364904298,1749287462536,-4009.1049406,0.00042,120]
[364904299,1749287462546,-287.33,0.00042,120]
[364904300,1749287462555,-260.92067048,0.00042,120]
[364904301,1749287462566,-345.65,0.00042,14]
[364904302,1749287462576,-1340.72852394,0.0004201,2]
[364904303,1749287462586,-482.47262759,0.00042025,120]
[364904304,1749287462596,-1333.0,0.00042027,7]
[364904305,1749287462606,-582.0,0.000421,3]
[364904306,1749287462616,-611.0378752,0.00042107,45]
[364904307,1749287462626,-835.77620978,0.00042192,10]
[364904308,1749287462636,-3600.0,0.000422,2]
[364904309,1749287462647,-345.65,0.000422,14]
[364904310,1749287462658,-296.44,0.00042231,120]
[364904311,1749287462668,-2000.0,0.00042234,60]
[364904312,1749287462678,-248.0,0.0004225,120]
[364904313,1749287462688,-169.0,0.00042288,90]
[364904314,1749287462698,-200.0,0.00042324,120]
[364904315,1749287462708,-982618.14,0.0004244,30]
[364904316,1749287462718,-151.0,0.0004244,14]
[364904317,1749287462728,-151.0,0.0004244,14]
[364904318,1749287462738,-151.0,0.0004244,14]
[364904319,1749287462748,-261.759666,0.0004244,14]
[364904320,1749287462758,-151.0,0.0004244,14]
[364904321,1749287462772,-151.0,0.0004244,14]
[364904322,1749287462782,-153.285283,0.0004244,14]
[364904323,1749287462792,-151.0,0.0004244,14]
[364904324,1749287462801,-151.0,0.0004244,14]
[364904325,1749287462813,-151.0,0.0004244,14]
[364904326,1749287462823,-151.0,0.0004244,14]
[364904327,1749287462833,-151.0,0.0004244,14]
[364904328,1749287462844,-183.92822,0.0004244,14]
[364904329,1749287462854,-183.92822,0.0004244,14]
[364904330,1749287462864,-1094.357078,0.0004244,14]
[364904331,1749287462874,-354.436695,0.0004244,14]
[364904332,1749287462884,-1094.357078,0.0004244,14]
[364904333,1749287462894,-354.436695,0.0004244,14]
[364904334,1749287462904,-184.590968,0.0004244,14]
[364904335,1749287462913,-184.590968,0.0004244,14]
[364904336,1749287462923,-151.0,0.0004244,14]
[364904337,1749287462933,-151.0,0.0004244,14]
[364904338,1749287462943,-151.0,0.0004244,14]
[364904339,1749287462953,-652.236566,0.0004244,14]
[364904340,1749287462964,-151.0,0.0004244,14]
[364904341,1749287462974,-652.236566,0.0004244,14]
[364904342,1749287462985,-151.0,0.0004244,14]
[364904343,1749287462995,-402.907868,0.0004244,14]
[364904344,1749287463006,-402.907868,0.0004244,14]
[364904345,1749287463017,-151.0,0.0004244,14]
[364904346,1749287463027,-151.0,0.0004244,14]
[364904347,1749287463038,-1313.664653,0.0004244,14]
[364904348,1749287463050,-151.0,0.0004244,14]
[364904349,1749287463061,-1313.664653,0.0004244,14]
[364904350,1749287463072,-299.643866,0.0004244,14]
[364904351,1749287463082,-855.267624,0.0004244,14]
[364904352,1749287463093,-299.643866,0.0004244,14]
[364904353,1749287463104,-855.267624,0.0004244,14]
[364904354,1749287463116,-151.0,0.0004244,14]
[364904355,1749287463126,-151.0,0.0004244,14]
[364904356,1749287463137,-155.562117,0.0004244,14]
[364904357,1749287463147,-155.562117,0.0004244,14]
[364904358,1749287463158,-151.0,0.0004244,14]
[364904359,1749287463169,-151.0,0.0004244,14]
[364904360,1749287463180,-225.218056,0.0004244,14]
[364904361,1749287463191,-225.218056,0.0004244,14]
[364904362,1749287463203,-313.64173,0.0004244,14]
[364904363,1749287463214,-151.0,0.0004244,14]
[364904364,1749287463225,-313.64173,0.0004244,14]
[364904365,1749287463237,-1625.68671481,0.000425,60]
[364904366,1749287463248,-163.2,0.00042521,30]
[364904367,1749287463259,-552.07,0.000426,14]
[364904368,1749287463270,-345.65,0.000427,14]
[364904369,1749287463283,-1899.59,0.00042732,2]
[364904370,1749287463295,-2000.0,0.0004278,45]
[364904371,1749287463307,-1645.85,0.00042782,30]
[364904372,1749287463318,-920.9,0.00042783,30]
[364904373,1749287463328,-921.88,0.00042783,30]
[364904374,1749287463340,-1101.36661384,0.00042789,2]
[364904375,1749287463351,-854.513053,0.000428,120]
[364904376,1749287463362,-977.25908044,0.0004282,2]
[364904377,1749287463373,-205.0,0.00042822,18]
[364904378,1749287463384,-500.0,0.00042822,2]
[364904379,1749287463396,-155.00000278,0.00042861,120]
[364904380,1749287463407,-1000.0,0.000429,30]
[364904381,1749287463420,-2000.0,0.00042962,60]
[364904382,1749287463432,-50000.0,0.00043,43]
[364904383,1749287463444,-214.0,0.00043,7]
[364904384,1749287463455,-251.1074564,0.00043,14]
[364904385,1749287463467,-22000.0,0.00043,30]
[364904386,1749287463683,-570.89688113,0.00043,120]
[364904387,1749287463696,-7873.0,0.00043,120]
[364904388,1749287463706,-2852.84181736,0.00043,120]
[364904389,1749287463717,-167.87195969,0.00043,120]
[364904390,1749287463727,-6990.89528075,0.00043,60]
[364904391,1749287463738,-1565.34,0.00043,120]
[364904392,1749287463749,-514.1820756,0.00043,120]
[364904393,1749287463759,-2924.93,0.00043,120]
[364904394,1749287463774,-171.62,0.00043,120]
[364904395,1749287463784,-765.95,0.00043,120]
[364904396,1749287463794,-611.0378752,0.00043038,47]
[364904397,1749287463805,-345.65,0.000431,14]
[364904398,1749287463817,-3016.03023953,0.0004313,120]
[364904399,1749287463827,-177.0,0.00043151,90]
[364904400,1749287463836,-944.0,0.00043259,2]
[364904401,1749287463848,-801.0,0.00043259,2]
[364904402,1749287463858,-636.0,0.00043259,2]
[364904403,1749287463868,-2000.0,0.00043259,2]
[364904404,1749287463879,-589.0,0.00043259,2]
[364904405,1749287463889,-557.0,0.00043259,2]
[364904406,1749287463900,-926.0,0.00043259,2]
[364904407,1749287463911,-155.0,0.00043259,2]
[364904408,1749287463922,-4082.0,0.00043259,2]